bitfinex/quotes_SOLUSD_20250131
["timestamp","ask_amount","ask_price","bid_price","bid_amount"]
[1738307378860,0.4197,238.23,238.13,0.12549]
[1738307379096,0.4197,238.23,238.16,20.0]
[1738307379759,0.4197,238.23,238.16,239.167]
[1738307379965,0.4197,238.23,238.16,219.167]
[1738307380686,0.4197,238.23,238.19,20.0]
[1738307380974,1.0492,238.27,238.2,2.74]
[1738307383781,1.1122,238.27,238.2,2.74]
[1738307383968,1.5318,238.27,238.2,2.74]
[1738307386482,0.063,238.27,238.2,2.74]
[1738307386695,0.4826,238.27,238.2,2.74]
[1738307391796,0.4826,238.27,238.2,221.907]
[1738307393075,1.5318,238.27,238.2,221.907]
[1738307396901,0.4826,238.27,238.2,221.907]
[1738307397594,0.4826,238.27,238.2,84.907]
[1738307400777,0.4826,238.27,238.21,2.74]
[1738307402690,0.4826,238.27,238.23,20.0]
[1738307405501,0.063,238.27,238.24,20.0]
[1738307405694,0.063,238.27,238.26,20.0]
[1738307409294,0.063,238.27,238.26,102.167]
[1738307412508,0.063,238.27,238.26,239.167]
[1738307416800,0.063,238.27,238.26,252.95531853]
[1738307417304,0.063,238.27,238.26,259.34631853]
[1738307426109,0.063,238.27,238.26,245.68349]
[1738307427498,0.063,238.27,238.26,248.42349]
[1738307427695,0.063,238.27,238.26,248.298]
[1738307428610,0.063,238.27,238.26,245.558]
[1738307428817,0.063,238.27,238.26,241.907]
[1738307429493,0.063,238.27,238.26,221.907]
[1738307430025,0.063,238.27,238.26,219.167]
[1738307430322,0.063,238.27,238.26,84.907]
[1738307435727,0.063,238.27,238.26,2.74]
[1738307436027,0.4827,238.27,238.26,2.74]
[1738307440421,0.4827,238.27,238.21,88.802]
[1738307440623,0.4827,238.27,238.22,2.74]
[1738307445822,0.4827,238.27,238.21,82.167]
[1738307446125,0.4827,238.27,238.22,2.74]
[1738307446330,0.4827,238.27,238.21,82.167]
[1738307446504,0.4827,238.27,238.23,2.74]
[1738307448318,0.4827,238.27,238.21,82.167]
[1738307448530,0.4827,238.27,238.23,2.74]
[1738307452530,0.4827,238.27,238.18,137.0]
[1738307452705,0.4827,238.27,238.19,2.74]
[1738307453228,1.5319,238.27,238.18,20.0]
[1738307453403,1.5319,238.27,238.2,2.74]
[1738307454019,1.5319,238.27,238.15,88.2797]
[1738307454226,1.5319,238.27,238.16,2.74]
[1738307454437,1.5319,238.27,238.17,2.74]
[1738307454634,1.5319,238.27,238.15,82.167]
[1738307454635,2.5319,238.27,238.15,82.167]
[1738307454805,14.41184853,238.26,238.16,2.74]
[1738307455000,1.0,238.24,238.09,88.6613]
[1738307455241,1.0,238.24,238.17,2.74]
[1738307455635,1.4691,238.23,238.17,2.74]
[1738307456313,1.4691,238.23,238.09,88.6613]
[1738307456314,22.4691,238.23,238.15,2.74]
[1738307457229,21.4691,238.23,238.15,2.74]
[1738307458437,0.4197,238.21,238.16,2.74]
[1738307462830,0.4197,238.21,238.15,2.74]
[1738307464651,1.0494,238.22,238.15,2.74]
[1738307464858,20.4197,238.23,238.15,2.74]
[1738307465864,80.6,238.26,238.15,2.74]
[1738307466154,0.063,238.27,238.15,6.9389]
[1738307467058,0.063,238.27,238.18,20.0]
[1738307468651,0.063,238.27,238.18,239.167]
[1738307468956,0.063,238.27,238.19,4.1983]
[1738307471956,0.063,238.27,238.19,86.3653]
[1738307472668,0.063,238.27,238.2,13.41184853]
[1738307473563,0.063,238.27,238.21,4.1979]
[1738307474948,0.063,238.27,238.21,86.3649]
[1738307479788,0.4826,238.27,238.21,82.167]
[1738307480761,0.4826,238.27,238.21,20.0]
[1738307480972,0.4826,238.27,238.18,219.167]
[1738307481562,0.4826,238.27,238.21,20.0]
[1738307487866,0.4826,238.27,238.18,82.167]
[1738307494079,1.61,238.26,238.18,82.167]
[1738307494256,1.61,238.26,238.19,2.74]
[1738307495957,0.4197,238.25,238.19,2.74]
[1738307496780,0.4197,238.25,238.2,2.74]
[1738307496986,0.4827,238.27,238.2,2.74]
[1738307501687,0.063,238.27,238.2,6.9379]
[1738307504093,0.063,238.27,238.21,20.0]
[1738307504385,0.4826,238.27,238.21,20.0]
[1738307508582,0.4826,238.27,238.2,2.74]
[1738307509278,0.4826,238.27,238.21,20.0]
[1738307509663,0.4826,238.27,238.2,2.74]
[1738307510473,0.4826,238.27,238.2,84.907]
[1738307524076,1.5318,238.27,238.2,82.167]
[1738307524280,1.6041,238.26,238.21,2.74]
[1738307525075,1.6041,238.26,238.15,82.167]
[1738307525280,1.6041,238.26,238.16,2.74]
[1738307525687,1.6041,238.26,238.15,82.167]
[1738307525979,0.4197,238.25,238.16,2.74]
[1738307541339,1.469,238.25,238.16,2.74]
[1738307541629,1.469,238.25,238.17,2.74]
[1738307547138,1.532,238.25,238.17,2.74]
[1738307557538,0.4827,238.25,238.17,2.74]
[1738307557925,0.4827,238.25,238.17,84.907]
[1738307560352,0.4827,238.25,238.2,20.0]
[1738307564041,0.4827,238.25,238.2,102.167]
[1738307564632,0.063,238.25,238.2,102.167]
[1738307567442,0.063,238.25,238.2,243.3651]
[1738307568650,0.063,238.25,238.24,20.0]
[1738307568971,0.063,238.25,238.24,102.167]
[1738307579052,0.063,238.25,238.24,82.167]
[1738307584987,0.063,238.25,238.24,219.167]
[1738307585365,0.063,238.25,238.24,223.3644]
[1738307589203,0.063,238.25,238.24,236.77624853]
[1738307593201,0.063,238.25,238.24,237.15271853]
[1738307596313,0.063,238.25,238.24,232.57884853]
[1738307599620,0.063,238.25,238.24,236.77624853]
[1738307605905,0.063,238.33,238.28,20.0]
[1738307606138,0.063,238.33,238.29,2.74]
[1738307609714,0.063,238.33,238.32,20.0]
[1738307609919,0.063,238.33,238.29,2.74]
[1738307611517,0.063,238.33,238.32,20.0]
[1738307623345,0.063,238.33,238.29,82.167]
[1738307623551,0.4825,238.33,238.3,2.74]
[1738307624624,0.063,238.33,238.3,2.74]
[1738307627548,0.063,238.33,238.3,26.9363]
[1738307629744,0.063,238.33,238.3,22.74]
[1738307629955,0.063,238.33,238.3,2.74]
[1738307630249,0.063,238.33,238.3,22.74]
[1738307632247,0.063,238.33,238.3,104.907]
[1738307634644,0.063,238.33,238.3,109.1033]
[1738307635240,0.063,238.33,238.3,104.907]
[1738307635732,0.063,238.33,238.3,109.1032]
[1738307635940,0.063,238.33,238.3,104.907]
[1738307640168,0.4825,238.33,238.31,2.74]
[1738307658459,0.4825,238.33,238.27,20.03]
[1738307658680,0.4825,238.33,238.27,0.03]
[1738307658973,0.4825,238.33,238.28,2.74]
[1738307659349,1.5314,238.33,238.28,2.74]
[1738307660364,1.5314,238.33,238.27,0.03]
[1738307661181,20.0,238.32,238.27,0.03]
[1738307661667,13.41184853,238.31,238.27,0.03]
[1738307663269,0.4196,238.3,238.27,0.03]
[1738307674588,0.4826,238.3,238.27,0.03]
[1738307703631,0.063,238.3,238.27,0.03]
[1738307703928,0.063,238.3,238.27,82.197]
[1738307704093,0.063,238.3,238.28,6.3938]
[1738307708420,0.4826,238.3,238.27,82.197]
[1738307709538,0.4826,238.3,238.27,0.03]
[1738307726045,21.4826,238.3,238.27,0.03]
[1738307728947,13.41184853,238.29,238.27,0.03]
[1738307729154,13.41184853,238.27,238.16,143.556]
[1738307729458,13.41184853,238.27,238.17,2.74]
[1738307730257,13.41184853,238.27,238.16,6.556]
[1738307730427,0.4197,238.26,238.18,2.74]
[1738307736352,0.4197,238.26,238.17,0.03]
[1738307736552,0.4197,238.26,238.18,2.74]
[1738307738552,1.4689,238.26,238.18,2.74]
[1738307750557,0.4197,238.26,238.18,3.36965851]
[1738307751292,0.4197,238.26,238.18,2.74]
[1738307751971,0.4197,238.26,238.19,0.62958137]
[1738307754650,0.063,238.27,238.19,4.82788137]
[1738307755146,0.063,238.27,238.19,86.99488137]
[1738307755380,0.063,238.27,238.19,86.3653]
[1738307755678,0.063,238.27,238.19,86.9948023]
[1738307756478,0.063,238.27,238.19,86.3653]
[1738307756781,0.063,238.27,238.2,6.38357461]
[1738307757843,0.063,238.27,238.23,20.0]
[1738307758073,0.063,238.27,238.23,102.79644901]
[1738307758279,0.063,238.27,238.23,102.167]
[1738307758769,0.063,238.27,238.23,112.6868]
[1738307759075,0.063,238.27,238.24,0.62938523]
[1738307760172,0.063,238.27,238.26,20.0]
[1738307760370,0.063,238.27,238.26,20.62931688]
[1738307766102,0.063,238.27,238.26,239.79631688]
[1738307766395,0.063,238.27,238.26,239.167]
[1738307768291,0.063,238.27,238.26,239.41798]
[1738307769394,0.063,238.27,238.26,252.95531853]
[1738307769696,0.063,238.27,238.26,254.47791853]
[1738307773271,0.063,238.27,238.26,254.50791853]
[1738307773673,0.063,238.27,238.26,258.70491853]
[1738307787494,0.063,238.27,238.26,257.18231853]
[1738307787691,0.063,238.27,238.26,243.394]
[1738307788003,0.063,238.27,238.26,241.937]
[1738307788618,0.063,238.27,238.26,84.937]
[1738307791023,0.063,238.27,238.26,82.197]
[1738307791186,0.4826,238.27,238.26,0.03]
[1738307796712,21.41530158,238.28,238.26,0.03]
[1738307798121,0.4196,238.27,238.26,0.03]
[1738307807910,0.063,238.28,238.26,0.03]
[1738307819341,0.063,238.28,238.26,82.197]
[1738307827868,0.063,238.28,238.27,0.25098]
[1738307828041,0.063,238.28,238.27,0.88033798]
[1738307828240,0.063,238.28,238.27,83.04733798]
[1738307829443,0.063,238.28,238.27,82.167]
[1738307837568,0.063,238.28,238.27,84.907]
[1738307838246,0.063,238.28,238.26,0.03]
[1738307838247,0.4826,238.28,238.26,0.03]
[1738307840733,0.063,238.28,238.26,20.03]
[1738307840935,0.063,238.28,238.27,0.25098]
[1738307842352,0.063,238.28,238.27,20.25098]
[1738307842968,0.063,238.28,238.27,0.25098]
[1738307845668,0.063,238.28,238.27,0.28098]
[1738307846382,0.063,238.28,238.27,82.44798]
[1738307852374,0.063,238.28,238.27,241.23585366]
[1738307852675,0.063,238.28,238.27,240.60651853]
[1738307859760,0.063,238.28,238.27,244.80341853]
[1738307874101,0.063,238.28,238.27,243.19971853]
[1738307874304,0.063,238.28,238.27,226.38488]
[1738307874483,0.063,238.28,238.27,223.64488]
[1738307874683,0.063,238.28,238.27,84.937]
[1738307874892,0.063,238.28,238.27,0.03]
[1738307875103,0.063,238.28,238.27,2.77]
[1738307876307,0.063,238.28,238.27,0.03]
[1738307899425,81.6488,238.37,238.27,0.03]
[1738307899426,20.0,238.34,238.27,0.03]
[1738307901329,0.4195,238.33,238.27,0.03]
[1738307902101,0.4195,238.35,238.27,0.03]
[1738307914748,0.4825,238.35,238.27,0.03]
[1738307926160,13.41184853,238.34,238.27,0.03]
[1738307927233,0.4195,238.34,238.27,0.03]
[1738307941581,0.063,238.35,238.31,0.1120837]
[1738307943775,0.063,238.35,238.33,0.1120837]
[1738307945568,0.063,238.35,238.31,0.1120837]
[1738307945760,0.4825,238.35,238.3,88.2682]
[1738307947262,0.4825,238.35,238.3,88.3802837]
[1738307949591,0.4825,238.35,238.3,91.1202837]
[1738307951903,0.063,238.35,238.32,0.1120837]
[1738307963703,0.063,238.35,238.32,82.2790837]
[1738307964006,0.063,238.35,238.34,0.1120837]
[1738307965908,0.063,238.35,238.32,82.2790837]
[1738307966105,0.4825,238.35,238.32,82.2790837]
[1738307966413,0.4825,238.35,238.32,82.167]
[1738307967095,0.4825,238.35,238.33,0.1120837]
[1738307968411,0.4825,238.35,238.32,82.167]
[1738307972114,0.063,238.35,238.32,82.167]
[1738307972315,0.063,238.35,238.33,0.1120837]
[1738307981433,0.4825,238.35,238.32,82.197]
[1738307981725,0.4825,238.35,238.32,84.937]
[1738307982826,0.3774,238.35,238.32,84.937]
[1738307984226,0.3774,238.35,238.32,82.197]
[1738307985930,0.3774,238.35,238.32,0.03]
[1738307988919,0.063,238.36,238.32,0.03]
[1738307989127,0.4825,238.36,238.32,0.1420837]
[1738307991335,0.063,238.36,238.32,0.1420837]
[1738307991571,0.063,238.36,238.34,0.1120837]
[1738307994835,0.063,238.36,238.34,82.90833402]
[1738307995342,0.063,238.36,238.35,1.574]
[1738307996041,0.063,238.36,238.35,83.741]
[1738307996223,0.063,238.36,238.35,221.11747]
[1738307996428,0.063,238.36,238.35,220.741]
[1738307999617,0.063,238.36,238.35,219.167]
[1738307999843,0.063,238.36,238.35,221.887]
[1738308000751,0.063,238.36,238.35,2.72]
[1738308002351,0.4825,238.36,238.34,2.72]
[1738308003827,0.4825,238.36,238.33,0.16702187]
[1738308005753,0.4825,238.36,238.33,2.187e-05]
[1738308005754,0.4195,238.34,238.33,2.187e-05]
[1738308007257,13.83134853,238.34,238.33,2.187e-05]
[1738308009331,13.95683853,238.34,238.33,2.187e-05]
[1738308019461,13.83134853,238.34,238.32,0.03]
[1738308021165,13.83134853,238.34,238.33,0.03]
[1738308023289,13.95683853,238.34,238.33,0.03]
[1738308024488,13.53733853,238.33,238.32,0.03]
[1738308027669,13.41184853,238.29,238.26,0.03]
[1738308029172,13.83144853,238.28,238.26,0.03]
[1738308032179,13.95693853,238.28,238.26,0.03]
[1738308044304,13.95693853,238.28,238.27,0.0001]
[1738308044506,14.84485483,238.28,238.27,0.0001]
[1738308045910,13.95693853,238.28,238.27,0.0001]
[1738308046694,13.83144853,238.28,238.27,0.0001]
[1738308050319,20.0,238.3,238.27,0.0001]
[1738308050816,0.4196,238.31,238.27,0.0001]
[1738308051819,13.41184853,238.3,238.27,0.0001]
[1738308052007,0.4196,238.29,238.27,0.0001]
[1738308053518,13.41184853,238.28,238.27,0.0001]
[1738308055703,13.83144853,238.27,238.26,0.0001]
[1738308056713,13.41184853,238.26,238.19,6.1513]
[1738308057618,13.41184853,238.26,238.19,6.1813]
[1738308058114,0.4197,238.25,238.19,6.1813]
[1738308058623,13.41184853,238.24,238.19,6.1813]
[1738308059218,33.41184853,238.23,238.19,6.1813]
[1738308060114,0.4197,238.22,238.19,6.1813]
[1738308060518,0.4197,238.22,238.19,6.2933837]
[1738308061520,0.4197,238.24,238.21,0.1120837]
[1738308062224,0.4197,238.26,238.21,0.1120837]
[1738308064227,13.32555908,238.25,238.19,6.2933837]
[1738308065008,0.4197,238.26,238.19,6.2933837]
[1738308065211,0.4197,238.26,238.22,0.1120837]
[1738308065407,0.4197,238.26,238.2,0.1120837]
[1738308069835,0.4197,238.26,238.2,0.1420837]
[1738308071909,0.4197,238.26,238.22,0.1120837]
[1738308081845,0.063,238.28,238.22,0.1120837]
[1738308082151,0.063,238.26,238.25,0.1120837]
[1738308083934,0.063,238.26,238.25,8.2268837]
[1738308087339,0.063,238.26,238.25,8.1148]
[1738308087932,0.063,238.26,238.25,8.2268837]
[1738308094033,0.063,238.26,238.25,90.5268837]
[1738308096345,0.063,238.26,238.25,90.6523737]
[1738308096548,0.063,238.26,238.25,227.6523737]
[1738308096756,0.063,238.28,238.27,20.0]
[1738308096939,0.063,238.28,238.27,20.74138984]
[1738308101691,0.063,238.28,238.27,240.04138984]
[1738308101966,0.063,238.28,238.27,239.5375737]
[1738308104678,0.063,238.28,238.27,241.0551737]
[1738308104880,0.063,238.32,238.31,0.1120837]
[1738308105171,0.063,238.32,238.31,222.80128388]
[1738308105366,0.063,238.32,238.31,222.1720837]
[1738308113754,0.063,238.32,238.31,219.4120837]
[1738308114062,0.063,238.32,238.31,219.3]
[1738308114277,0.4196,238.31,238.27,0.1120837]
[1738308117090,0.4196,238.31,238.28,0.03]
[1738308117985,13.47484853,238.32,238.28,0.03]
[1738308117986,0.063,238.32,238.31,0.1120837]
[1738308118286,0.063,238.32,238.31,82.4120837]
[1738308119592,0.063,238.32,238.31,83.04130012]
[1738308119797,0.063,238.32,238.31,87.36299012]
[1738308120088,0.063,238.32,238.31,86.7337737]
[1738308122601,0.063,238.32,238.31,219.4120837]
[1738308122774,0.063,238.32,238.31,222.1720837]
[1738308125665,0.063,238.32,238.31,219.4120837]
[1738308125870,0.063,238.32,238.31,219.3]
[1738308126295,0.4826,238.32,238.29,2.8720837]
[1738308129201,0.4826,238.32,238.28,0.03]
[1738308129495,13.41184853,238.31,238.28,0.03]
[1738308131387,0.4196,238.3,238.28,0.03]
[1738308133186,0.4826,238.32,238.28,0.1420837]
[1738308134508,0.4826,238.32,238.28,0.03]
[1738308134675,13.41184853,238.31,238.28,0.03]
[1738308135405,0.4196,238.3,238.28,0.03]
[1738308142629,13.41184853,238.29,238.28,0.03]
[1738308144994,13.53733853,238.29,238.28,0.03]
[1738308155815,0.4826,238.3,238.28,0.03]
[1738308157918,0.4826,238.3,238.28,0.1420837]
[1738308162348,0.4826,238.3,238.28,0.03]
[1738308166045,0.4826,238.3,238.28,0.1420837]
[1738308166250,8.59016688,238.33,238.28,0.1420837]
[1738308168057,0.4196,238.32,238.28,0.1420837]
[1738308173150,0.4825,238.34,238.3,0.1120837]
[1738308174352,0.4825,238.34,238.28,0.1420837]
[1738308177232,0.063,238.33,238.28,0.1420837]
[1738308177439,0.4196,238.32,238.28,0.1420837]
[1738308182547,0.063,238.33,238.32,0.1120837]
[1738308187866,0.063,238.33,238.32,82.4120837]
[1738308189668,0.063,238.33,238.32,83.04130069]
[1738308189965,0.063,238.33,238.32,91.00670069]
[1738308190135,0.063,238.33,238.32,90.3774837]
[1738308193762,0.063,238.33,238.32,227.3774837]
[1738308196036,0.063,238.33,238.32,220.9858837]
[1738308196778,0.063,238.33,238.32,219.4120837]
[1738308196953,0.063,238.33,238.32,82.4120837]
[1738308202584,0.063,238.33,238.32,219.4120837]
[1738308203470,0.063,238.33,238.32,82.4120837]
[1738308212283,0.063,238.33,238.32,82.4420837]
[1738308214293,14.93274853,238.46,238.32,82.4420837]
[1738308214486,20.12549,238.43,238.32,82.4420837]
[1738308216090,0.4194,238.41,238.32,82.4420837]
[1738308217495,0.4194,238.41,238.38,0.1120837]
[1738308218500,0.4194,238.43,238.42,0.1120837]
[1738308219088,0.12549,238.42,238.4,0.1120837]
[1738308219701,0.54489,238.43,238.42,0.1120837]
[1738308220060,0.67038,238.43,238.42,0.1120837]
[1738308220268,0.12549,238.42,238.39,0.1120837]
[1738308220564,0.12549,238.42,238.38,82.3]
[1738308220774,0.12549,238.42,238.39,0.1120837]
[1738308221993,0.4194,238.41,238.39,0.1120837]
[1738308222873,0.4194,238.43,238.42,0.1120837]
[1738308228584,0.4194,238.43,238.4,0.1120837]
[1738308229681,0.12549,238.42,238.38,82.3]
[1738308230398,13.53733853,238.43,238.38,82.3]
[1738308230713,15.00523853,238.43,238.38,82.3]
[1738308231198,15.00523853,238.43,238.33,139.84]
[1738308231199,0.12549,238.39,238.33,0.1120837]
[1738308231377,0.12549,238.39,238.32,0.03]
[1738308232495,1.4681,238.38,238.32,0.03]
[1738308232686,1.4681,238.38,238.33,0.1120837]
[1738308233996,1.4681,238.38,238.32,0.03]
[1738308234373,1.4681,238.38,238.33,0.1120837]
[1738308235110,1.4681,238.38,238.32,0.03]
[1738308235403,13.41184853,238.37,238.32,0.03]
[1738308235971,13.41184853,238.37,238.33,0.063]
[1738308236175,0.12549,238.36,238.33,0.063]
[1738308236414,0.12549,238.33,238.32,0.03]
[1738308236708,1.59389,238.33,238.28,0.03]
[1738308239795,1.59389,238.33,238.29,0.1120837]
[1738308240698,1.59389,238.33,238.28,0.03]
[1738308240699,0.54499,238.33,238.31,0.1120837]
[1738308241204,0.4195,238.33,238.31,0.1120837]
[1738308241581,0.4195,238.36,238.31,0.1120837]
[1738308241783,0.4195,238.36,238.35,0.1120837]
[1738308242701,0.4194,238.4,238.35,0.1120837]
[1738308243195,0.4194,238.4,238.37,0.1120837]
[1738308245102,0.12549,238.39,238.37,0.1120837]
[1738308246475,0.4194,238.4,238.37,0.1120837]
[1738308246476,0.54489,238.4,238.37,0.1120837]
[1738308247696,0.57489,238.4,238.37,0.1120837]
[1738308248496,1.62349,238.4,238.35,0.1120837]
[1738308251212,20.0,238.38,238.35,0.1120837]
[1738308251507,20.0,238.38,238.31,137.063]
[1738308251508,0.4195,238.37,238.33,0.1120837]
[1738308251709,20.4195,238.37,238.33,0.1120837]
[1738308256122,0.12549,238.34,238.33,0.1120837]
[1738308256300,0.4195,238.35,238.33,0.1120837]
[1738308256504,0.4194,238.39,238.37,0.1120837]
[1738308257391,0.12549,238.38,238.37,0.1120837]
[1738308257822,0.12549,238.38,238.35,0.1120837]
[1738308258005,0.15549,238.4,238.35,0.1120837]
[1738308258211,0.12549,238.38,238.35,0.1120837]
[1738308258412,0.12549,238.38,238.37,0.1120837]
[1738308269313,0.03,238.4,238.37,0.1120837]
[1738308269522,0.03,238.4,238.39,0.1120837]
[1738308279937,0.03,238.4,238.39,82.4120837]
[1738308285852,0.03,238.4,238.39,0.1120837]
[1738308298944,0.57489,238.4,238.39,0.1120837]
[1738308300246,0.03,238.4,238.39,0.1120837]
[1738308310468,0.4494,238.4,238.39,0.1120837]
[1738308311462,0.03,238.4,238.37,0.1120837]
[1738308316359,0.03,238.4,238.39,0.1120837]
[1738308318770,0.4494,238.4,238.39,0.1120837]
[1738308321469,0.03,238.4,238.39,0.1120837]
[1738308323670,0.03,238.4,238.36,0.1120837]
[1738308323851,0.03,238.4,238.34,2.9920837]
[1738308324271,0.03,238.4,238.36,0.1120837]
[1738308327580,0.12549,238.39,238.36,0.1120837]
[1738308329963,0.4194,238.38,238.36,0.1120837]
[1738308330168,0.4194,238.38,238.34,0.1120837]
[1738308332981,0.4194,238.38,238.32,0.063]
[1738308333162,20.0,238.34,238.32,0.063]
[1738308333884,20.0,238.36,238.32,0.063]
[1738308334597,0.4195,238.35,238.32,0.063]
[1738308335301,0.4195,238.35,238.34,0.1120837]
[1738308336298,20.12549,238.38,238.34,0.1120837]
[1738308337469,0.12549,238.36,238.34,0.1120837]
[1738308339794,0.12549,238.37,238.34,0.1120837]
[1738308340093,0.54499,238.37,238.34,0.1120837]
[1738308346279,0.4195,238.37,238.36,0.1120837]
[1738308347298,0.03,238.38,238.36,0.1120837]
[1738308347508,0.03,238.38,238.34,0.1120837]
[1738308350212,0.15549,238.38,238.34,0.1120837]
[1738308350914,0.4195,238.37,238.34,0.1120837]
[1738308356431,0.03,238.38,238.32,0.1750837]
[1738308359406,20.03,238.38,238.32,0.063]
[1738308360106,0.12549,238.37,238.32,0.063]
[1738308360829,1.4683,238.36,238.32,0.063]
[1738308364523,1.4983,238.36,238.32,0.063]
[1738308367429,1.4983,238.36,238.33,0.1120837]
[1738308369833,0.4495,238.36,238.35,0.1120837]
[1738308371132,0.03,238.36,238.35,0.1120837]
[1738308378728,0.53557319,238.36,238.35,0.1120837]
[1738308389145,0.53557319,238.36,238.33,0.1120837]
[1738308389343,1.58437319,238.36,238.32,0.063]
[1738308390164,1.58437319,238.36,238.33,0.1120837]
[1738308391243,21.58437319,238.36,238.32,0.063]
[1738308392758,0.12549,238.35,238.32,0.063]
[1738308394492,0.4195,238.34,238.32,0.063]
[1738308398268,0.4195,238.34,238.28,0.03]
[1738308398477,20.0,238.3,238.28,0.03]
[1738308399678,0.4196,238.29,238.28,0.03]
[1738308402579,0.12549,238.31,238.28,0.03]
[1738308402964,20.0,238.3,238.28,0.03]
[1738308403772,0.4196,238.29,238.28,0.03]
[1738308412591,0.54509,238.29,238.28,0.03]
[1738308415394,0.54509,238.29,238.28,0.0001]
[1738308416593,20.54509,238.29,238.28,0.0001]
[1738308417098,33.83144853,238.29,238.23,0.1120837]
[1738308417287,117.57874853,238.29,238.22,0.03]
[1738308417489,20.0,238.25,238.22,0.03]
[1738308419093,0.4197,238.24,238.22,0.03]
[1738308419279,0.4197,238.24,238.21,0.1120837]
[1738308419280,0.4197,238.24,238.19,0.03]
[1738308419489,1.469,238.24,238.19,0.03]
[1738308422190,0.12549,238.21,238.19,0.03]
[1738308423482,0.4197,238.22,238.19,0.03]
[1738308423892,0.4197,238.22,238.21,0.1120837]
[1738308426195,0.4197,238.26,238.23,0.1120837]
[1738308428892,1.0492,238.28,238.23,0.1120837]
[1738308430898,1.4688,238.28,238.23,0.1120837]
[1738308435906,1.4988,238.28,238.23,0.1120837]
[1738308441504,1.4988,238.28,238.21,0.1120837]
[1738308443504,1.4988,238.28,238.23,0.1120837]
[1738308443709,18.70967535,238.29,238.23,0.1120837]
[1738308444690,18.70967535,238.29,238.21,0.1120837]
[1738308445114,1.4688,238.28,238.21,0.1120837]
[1738308447919,1.4988,238.28,238.21,0.1120837]
[1738308453717,1.4988,238.28,238.21,0.02601051]
[1738308459924,1.4988,238.28,238.21,0.08901051]
[1738308461747,20.0,238.24,238.21,0.063]
[1738308462045,20.0,238.23,238.21,0.063]
[1738308463622,0.4197,238.22,238.21,0.063]
[1738308472540,0.4497,238.22,238.21,0.063]
[1738308475140,13.86154853,238.22,238.21,0.063]
[1738308475344,0.4497,238.22,238.21,0.063]
[1738308475656,20.4497,238.22,238.21,0.063]
[1738308478939,0.03,238.22,238.21,0.063]
[1738308482061,13.44184853,238.22,238.19,0.03]
[1738308482230,0.4197,238.21,238.19,0.03]
[1738308482846,33.41184853,238.2,238.19,0.0001]
[1738308483054,33.41184853,238.2,238.09,0.03]
[1738308483055,13.41184853,238.18,238.09,0.03]
[1738308483255,20.0,238.15,238.09,0.03]
[1738308484570,0.4199,238.14,238.09,0.03]
[1738308486555,1.0497,238.16,238.09,0.03]
[1738308487170,20.0,238.15,238.09,0.03]
[1738308488262,0.4199,238.14,238.09,0.03]
[1738308497769,1.4697,238.14,238.09,0.03]
[1738308499759,21.4697,238.14,238.09,0.03]
[1738308502367,20.0,238.13,238.09,0.03]